[Event "Titled Tuesday Blitz November 29 Late 2022"]
[White "Graif, William"]
[Black "Rian, Kapriaga"]
[WhiteFideId "2609835"]
[BlackFideId "7103263"]
[WhiteElo "2205"]
[BlackElo "2351"]
[Result "1-0"]
[Round "10"]
[TimeControl "180+1"]
[Date "2022.11.30"]
[WhiteClock "0:00:09"]
[BlackClock "0:00:01"]

1. e4 {[%clk 0:02:54]}  c6 {[%clk 0:02:59]} 2. d4 {[%clk 0:02:51]}  d5 {[%clk 0:02:58]} 3. Nc3 {[%clk 0:02:50]}  dxe4 {[%clk 0:02:58]} 4. Bc4 {[%clk 0:02:50]}  Nf6 {[%clk 0:02:48]} 5. f3 {[%clk 0:02:50]}  e3 {[%clk 0:02:27]} 6. Bxe3 {[%clk 0:02:44]}  Bf5 {[%clk 0:02:26]} 7. Nge2 {[%clk 0:02:39]}  e6 {[%clk 0:02:26]} 8. g4 {[%clk 0:02:29]}  Bg6 {[%clk 0:02:25]} 9. Nf4 {[%clk 0:02:29]}  Bd6 {[%clk 0:02:22]} 10. h4 {[%clk 0:02:20]}  Qc7 {[%clk 0:02:01]} 11. Qd2 {[%clk 0:02:15]}  b5 {[%clk 0:01:42]} 12. Bb3 {[%clk 0:02:02]}  a5 {[%clk 0:01:40]} 13. a4 {[%clk 0:01:31]}  b4 {[%clk 0:01:38]} 14. Nce2 {[%clk 0:01:31]}  h6 {[%clk 0:00:44]} 15. Nxg6 {[%clk 0:01:22]}  fxg6 {[%clk 0:00:44]} 16. Bxe6 {[%clk 0:01:19]}  Nbd7 {[%clk 0:00:38]} 17. O-O-O {[%clk 0:01:15]}  O-O-O {[%clk 0:00:33]} 18. Qd3 {[%clk 0:00:55]}  Kb8 {[%clk 0:00:33]} 19. Qxg6 {[%clk 0:00:41]}  Nb6 {[%clk 0:00:26]} 20. Bb3 {[%clk 0:00:39]}  Rhe8 {[%clk 0:00:25]} 21. Qd3 {[%clk 0:00:35]}  Nfd5 {[%clk 0:00:22]} 22. Bd2 {[%clk 0:00:33]}  Re7 {[%clk 0:00:16]} 23. Rhe1 {[%clk 0:00:30]}  Rde8 {[%clk 0:00:16]} 24. Kb1 {[%clk 0:00:29]}  Nd7 {[%clk 0:00:11]} 25. Nc1 {[%clk 0:00:26]}  N7b6 {[%clk 0:00:10]} 26. Rxe7 {[%clk 0:00:25]}  Rxe7 {[%clk 0:00:10]} 27. Re1 {[%clk 0:00:24]}  Kb7 {[%clk 0:00:10]} 28. h5 {[%clk 0:00:23]}  Qd7 {[%clk 0:00:09]} 29. Rxe7 {[%clk 0:00:18]}  Qxe7 {[%clk 0:00:09]} 30. Qe4 {[%clk 0:00:18]}  Qxe4 {[%clk 0:00:07]} 31. fxe4 {[%clk 0:00:18]}  Nf6 {[%clk 0:00:07]} 32. e5 {[%clk 0:00:18]}  Bxe5 {[%clk 0:00:06]} 33. dxe5 {[%clk 0:00:18]}  Nxg4 {[%clk 0:00:06]} 34. e6 {[%clk 0:00:17]}  Kc7 {[%clk 0:00:07]} 35. Nd3 {[%clk 0:00:14]}  Kd6 {[%clk 0:00:04]} 36. c3 {[%clk 0:00:13]}  c5 {[%clk 0:00:04]} 37. cxb4 {[%clk 0:00:11]}  axb4 {[%clk 0:00:04]} 38. a5 {[%clk 0:00:10]}  Nc8 {[%clk 0:00:03]} 39. a6 {[%clk 0:00:10]}  Nf6 {[%clk 0:00:01]} 40. Bf4+ {[%clk 0:00:09]}  Ke7 {[%clk 0:00:01]} 41. Nxc5 {[%clk 0:00:09]} 1-0


[Site "https://www.chess.com"]

[Event "Titled Tuesday Blitz November 29 Late 2022"]
[White "Gubajdullin, Alexei"]
[Black "Arnold, Ken"]
[WhiteFideId "4141202"]
[BlackFideId "2056836"]
[WhiteElo "2230"]
[BlackElo "2396"]
[Result "1-0"]
[Round "10"]
[TimeControl "180+1"]
[Date "2022.11.30"]
[WhiteClock "0:00:17"]
[BlackClock "0:00:02"]

1. Nf3 {[%clk 0:03:00]}  d5 {[%clk 0:02:59]} 2. g3 {[%clk 0:02:59]}  c6 {[%clk 0:02:59]} 3. Bg2 {[%clk 0:02:59]}  Nf6 {[%clk 0:03:00]} 4. O-O {[%clk 0:02:59]}  Bg4 {[%clk 0:03:00]} 5. d3 {[%clk 0:02:57]}  Nbd7 {[%clk 0:02:59]} 6. c4 {[%clk 0:02:57]}  e6 {[%clk 0:02:59]} 7. Qb3 {[%clk 0:02:56]}  Qb6 {[%clk 0:02:58]} 8. Be3 {[%clk 0:02:56]}  Bc5 {[%clk 0:02:57]} 9. Bxc5 {[%clk 0:02:54]}  Nxc5 {[%clk 0:02:56]} 10. Qa3 {[%clk 0:02:54]}  a5 {[%clk 0:02:55]} 11. Nc3 {[%clk 0:02:48]}  Qb4 {[%clk 0:02:52]} 12. cxd5 {[%clk 0:02:42]}  Nxd5 {[%clk 0:02:50]} 13. Rfc1 {[%clk 0:02:41]}  Nd7 {[%clk 0:02:18]} 14. Ne4 {[%clk 0:02:26]}  O-O {[%clk 0:02:10]} 15. Nd6 {[%clk 0:02:25]}  Rfb8 {[%clk 0:02:04]} 16. Rc4 {[%clk 0:02:23]}  Qb6 {[%clk 0:01:53]} 17. Rxg4 {[%clk 0:02:20]}  Nb4 {[%clk 0:01:48]} 18. Rc1 {[%clk 0:02:18]}  Nf6 {[%clk 0:01:45]} 19. Rgc4 {[%clk 0:02:16]}  Nfd5 {[%clk 0:01:44]} 20. e4 {[%clk 0:02:12]}  Ne7 {[%clk 0:01:38]} 21. R4c3 {[%clk 0:02:07]}  Qd8 {[%clk 0:01:37]} 22. Nc4 {[%clk 0:02:01]}  b5 {[%clk 0:01:36]} 23. Nce5 {[%clk 0:02:00]}  Rb6 {[%clk 0:01:29]} 24. Qb3 {[%clk 0:01:58]}  Qd6 {[%clk 0:01:27]} 25. a3 {[%clk 0:01:50]}  Na6 {[%clk 0:01:22]} 26. d4 {[%clk 0:01:44]}  a4 {[%clk 0:01:21]} 27. Qd1 {[%clk 0:01:42]}  f6 {[%clk 0:01:16]} 28. Nd3 {[%clk 0:01:38]}  Rd8 {[%clk 0:01:14]} 29. Nc5 {[%clk 0:01:34]}  b4 {[%clk 0:01:07]} 30. axb4 {[%clk 0:01:34]}  Nxb4 {[%clk 0:01:06]} 31. Qxa4 {[%clk 0:01:26]}  Rb5 {[%clk 0:01:02]} 32. e5 {[%clk 0:01:24]}  fxe5 {[%clk 0:00:58]} 33. dxe5 {[%clk 0:01:23]}  Qb8 {[%clk 0:00:35]} 34. Nxe6 {[%clk 0:01:21]}  Rdd5 {[%clk 0:00:28]} 35. Nf4 {[%clk 0:01:14]}  Rd7 {[%clk 0:00:21]} 36. e6 {[%clk 0:00:54]}  Ra7 {[%clk 0:00:21]} 37. Qd1 {[%clk 0:00:52]}  Na2 {[%clk 0:00:21]} 38. Rxc6 {[%clk 0:00:31]}  Nxc1 {[%clk 0:00:20]} 39. Rxc1 {[%clk 0:00:31]}  Rxb2 {[%clk 0:00:20]} 40. Nd5 {[%clk 0:00:31]}  Nxd5 {[%clk 0:00:19]} 41. Qxd5 {[%clk 0:00:30]}  Re7 {[%clk 0:00:19]} 42. Rd1 {[%clk 0:00:28]}  h6 {[%clk 0:00:17]} 43. Qd8+ {[%clk 0:00:27]}  Qxd8 {[%clk 0:00:16]} 44. Rxd8+ {[%clk 0:00:26]}  Kh7 {[%clk 0:00:17]} 45. Nd4 {[%clk 0:00:27]}  Rd2 {[%clk 0:00:16]} 46. Be4+ {[%clk 0:00:26]}  g6 {[%clk 0:00:15]} 47. h4 {[%clk 0:00:25]}  Rd1+ {[%clk 0:00:11]} 48. Kg2 {[%clk 0:00:25]}  Re1 {[%clk 0:00:10]} 49. Bc2 {[%clk 0:00:22]}  Kg7 {[%clk 0:00:09]} 50. h5 {[%clk 0:00:19]}  Rc7 {[%clk 0:00:02]} 51. hxg6 {[%clk 0:00:18]}  Re5 {[%clk 0:00:02]} 52. e7 {[%clk 0:00:17]} 1-0


[Site "https://www.chess.com"]

[Event "Titled Tuesday Blitz November 29 Late 2022"]
[White "Han, Yichen"]
[Black "Wirig, Anthony"]
[WhiteFideId "1054430"]
[BlackFideId "615013"]
[WhiteElo "2323"]
[BlackElo "2487"]
[Result "1/2-1/2"]
[Round "10"]
[TimeControl "180+1"]
[Date "2022.11.30"]
[WhiteClock "0:00:05"]
[BlackClock "0:00:12"]

1. e4 {[%clk 0:03:00]}  g6 {[%clk 0:02:48]} 2. d4 {[%clk 0:03:00]}  Bg7 {[%clk 0:02:49]} 3. Nc3 {[%clk 0:03:00]}  c6 {[%clk 0:02:50]} 4. Be3 {[%clk 0:02:54]}  Qb6 {[%clk 0:02:47]} 5. Rb1 {[%clk 0:02:41]}  Qc7 {[%clk 0:02:46]} 6. Qd2 {[%clk 0:02:41]}  d6 {[%clk 0:02:46]} 7. Nf3 {[%clk 0:02:37]}  Bg4 {[%clk 0:02:45]} 8. Be2 {[%clk 0:02:37]}  Bxf3 {[%clk 0:02:45]} 9. Bxf3 {[%clk 0:02:37]}  Nd7 {[%clk 0:02:46]} 10. O-O {[%clk 0:02:34]}  Ngf6 {[%clk 0:02:46]} 11. Bh6 {[%clk 0:02:32]}  O-O {[%clk 0:02:44]} 12. Bxg7 {[%clk 0:02:28]}  Kxg7 {[%clk 0:02:45]} 13. Rbd1 {[%clk 0:02:26]}  e5 {[%clk 0:02:40]} 14. g3 {[%clk 0:02:25]}  Rad8 {[%clk 0:02:39]} 15. h4 {[%clk 0:02:18]}  h5 {[%clk 0:02:35]} 16. b3 {[%clk 0:02:18]}  Rfe8 {[%clk 0:02:33]} 17. d5 {[%clk 0:02:13]}  cxd5 {[%clk 0:02:30]} 18. Nxd5 {[%clk 0:02:05]}  Nxd5 {[%clk 0:02:30]} 19. Qxd5 {[%clk 0:01:58]}  Nf6 {[%clk 0:02:26]} 20. Qd3 {[%clk 0:01:55]}  d5 {[%clk 0:02:14]} 21. Qe2 {[%clk 0:01:54]}  d4 {[%clk 0:02:09]} 22. Rc1 {[%clk 0:01:51]}  Qc3 {[%clk 0:01:52]} 23. Kg2 {[%clk 0:01:46]}  Rc8 {[%clk 0:01:47]} 24. Rfd1 {[%clk 0:01:43]}  Re7 {[%clk 0:01:34]} 25. a4 {[%clk 0:01:34]}  a6 {[%clk 0:01:31]} 26. Qd2 {[%clk 0:01:05]}  Qxd2 {[%clk 0:01:25]} 27. Rxd2 {[%clk 0:01:05]}  Rc3 {[%clk 0:01:25]} 28. Re1 {[%clk 0:01:00]}  Rec7 {[%clk 0:01:25]} 29. Bd1 {[%clk 0:01:00]}  Nd7 {[%clk 0:01:15]} 30. f4 {[%clk 0:01:00]}  f6 {[%clk 0:01:15]} 31. f5 {[%clk 0:00:56]}  Nc5 {[%clk 0:01:08]} 32. g4 {[%clk 0:00:33]}  gxf5 {[%clk 0:01:04]} 33. exf5 {[%clk 0:00:27]}  hxg4 {[%clk 0:01:02]} 34. Bxg4 {[%clk 0:00:27]}  Kh6 {[%clk 0:01:00]} 35. Kh2 {[%clk 0:00:26]}  Rg7 {[%clk 0:00:59]} 36. Rg2 {[%clk 0:00:26]}  Ne4 {[%clk 0:00:36]} 37. Rxe4 {[%clk 0:00:24]}  a5 {[%clk 0:00:33]} 38. Ree2 {[%clk 0:00:23]}  b6 {[%clk 0:00:31]} 39. Rd2 {[%clk 0:00:22]}  Re3 {[%clk 0:00:29]} 40. Bh3 {[%clk 0:00:20]}  Rxg2+ {[%clk 0:00:26]} 41. Rxg2 {[%clk 0:00:21]}  Kh5 {[%clk 0:00:26]} 42. Rg6 {[%clk 0:00:18]}  Kxh4 {[%clk 0:00:26]} 43. Bg2 {[%clk 0:00:17]}  Re2 {[%clk 0:00:22]} 44. Rxf6 {[%clk 0:00:17]}  Kg5 {[%clk 0:00:20]} 45. Rf8 {[%clk 0:00:17]}  Rxc2 {[%clk 0:00:20]} 46. f6 {[%clk 0:00:16]}  Kg6 {[%clk 0:00:20]} 47. Kg3 {[%clk 0:00:14]}  Re2 {[%clk 0:00:18]} 48. Bf3 {[%clk 0:00:09]}  Re3 {[%clk 0:00:17]} 49. Kf2 {[%clk 0:00:09]}  e4 {[%clk 0:00:14]} 50. Bg4 {[%clk 0:00:08]}  Rxb3 {[%clk 0:00:12]} 51. Be6 {[%clk 0:00:05]}  Rf3+ {[%clk 0:00:12]} 52. Ke2 {[%clk 0:00:05]}  Rxf6 {[%clk 0:00:12]} 53. Rxf6+ {[%clk 0:00:04]}  Kxf6 {[%clk 0:00:13]} 54. Bc8 {[%clk 0:00:04]}  Ke5 {[%clk 0:00:12]} 55. Kd2 {[%clk 0:00:05]}  Kd5 {[%clk 0:00:11]} 56. Bd7 {[%clk 0:00:05]}  Kc4 {[%clk 0:00:11]} 57. Bc6 {[%clk 0:00:04]}  e3+ {[%clk 0:00:11]} 58. Ke2 {[%clk 0:00:05]}  Kc3 {[%clk 0:00:12]} 59. Bb5 {[%clk 0:00:05]}  Kc2 {[%clk 0:00:12]} 60. Bd3+ {[%clk 0:00:04]}  Kb3 {[%clk 0:00:12]} 61. Bb5 {[%clk 0:00:05]}  Kc3 {[%clk 0:00:13]} 62. Bd3 {[%clk 0:00:05]}  Kb4 {[%clk 0:00:14]} 63. Bb5 {[%clk 0:00:05]}  Kc3 {[%clk 0:00:13]} 64. Ba6 {[%clk 0:00:05]}  Kc2 {[%clk 0:00:13]} 65. Bb5 {[%clk 0:00:05]}  Kc3 {[%clk 0:00:12]} 1/2-1/2


[Site "https://www.chess.com"]

[Event "Titled Tuesday Blitz November 29 Late 2022"]
[White "Hardaway, Brewington"]
[Black "Salman, Pavel"]
[WhiteFideId "30941849"]
[BlackFideId "24153753"]
[WhiteElo "2159"]
[BlackElo "2187"]
[Result "1-0"]
[Round "10"]
[TimeControl "180+1"]
[Date "2022.11.30"]
[WhiteClock "0:00:34"]
[BlackClock "0:00:10"]

1. Nf3 {[%clk 0:03:00]}  c5 {[%clk 0:02:59]} 2. e4 {[%clk 0:02:57]}  e6 {[%clk 0:02:59]} 3. Nc3 {[%clk 0:02:58]}  a6 {[%clk 0:02:59]} 4. d4 {[%clk 0:02:51]}  cxd4 {[%clk 0:02:58]} 5. Nxd4 {[%clk 0:02:52]}  Qc7 {[%clk 0:02:59]} 6. g3 {[%clk 0:02:51]}  Nf6 {[%clk 0:02:58]} 7. Bg2 {[%clk 0:02:51]}  Be7 {[%clk 0:02:59]} 8. O-O {[%clk 0:02:52]}  d6 {[%clk 0:02:59]} 9. a4 {[%clk 0:02:51]}  O-O {[%clk 0:02:59]} 10. g4 {[%clk 0:02:51]}  Nc6 {[%clk 0:02:53]} 11. g5 {[%clk 0:02:46]}  Nd7 {[%clk 0:02:53]} 12. Be3 {[%clk 0:02:44]}  Nde5 {[%clk 0:02:51]} 13. b3 {[%clk 0:02:40]}  Nxd4 {[%clk 0:02:29]} 14. Qxd4 {[%clk 0:02:32]}  Ng4 {[%clk 0:02:29]} 15. Bd2 {[%clk 0:02:30]}  Qc5 {[%clk 0:02:29]} 16. Qxc5 {[%clk 0:02:28]}  dxc5 {[%clk 0:02:30]} 17. f4 {[%clk 0:02:28]}  c4 {[%clk 0:02:25]} 18. Nd1 {[%clk 0:02:19]}  Bc5+ {[%clk 0:02:16]} 19. Kh1 {[%clk 0:02:19]}  Rd8 {[%clk 0:02:17]} 20. b4 {[%clk 0:01:59]}  Ba7 {[%clk 0:02:03]} 21. Bc3 {[%clk 0:01:58]}  e5 {[%clk 0:01:56]} 22. f5 {[%clk 0:01:55]}  h6 {[%clk 0:01:40]} 23. h3 {[%clk 0:01:54]}  Ne3 {[%clk 0:01:40]} 24. Nxe3 {[%clk 0:01:54]}  Bxe3 {[%clk 0:01:41]} 25. gxh6 {[%clk 0:01:55]}  Bxh6 {[%clk 0:01:40]} 26. Bxe5 {[%clk 0:01:55]}  Bd7 {[%clk 0:01:36]} 27. a5 {[%clk 0:01:53]}  Bc6 {[%clk 0:01:35]} 28. Bc3 {[%clk 0:01:50]}  Re8 {[%clk 0:01:30]} 29. Rfe1 {[%clk 0:01:48]}  Rad8 {[%clk 0:01:30]} 30. Re2 {[%clk 0:01:42]}  Bf4 {[%clk 0:01:10]} 31. e5 {[%clk 0:01:38]}  Bxg2+ {[%clk 0:01:08]} 32. Kxg2 {[%clk 0:01:39]}  Rd5 {[%clk 0:01:08]} 33. Rae1 {[%clk 0:01:37]}  g6 {[%clk 0:01:02]} 34. Kf3 {[%clk 0:01:37]}  Bh6 {[%clk 0:00:52]} 35. fxg6 {[%clk 0:01:37]}  fxg6 {[%clk 0:00:52]} 36. Ke4 {[%clk 0:01:37]}  Rd7 {[%clk 0:00:49]} 37. Rg2 {[%clk 0:01:36]}  Kh7 {[%clk 0:00:48]} 38. Rf1 {[%clk 0:01:35]}  Bg7 {[%clk 0:00:45]} 39. Rf4 {[%clk 0:01:30]}  Re6 {[%clk 0:00:44]} 40. Rh4+ {[%clk 0:01:28]}  Kg8 {[%clk 0:00:44]} 41. Rhg4 {[%clk 0:01:24]}  Kh7 {[%clk 0:00:39]} 42. Re2 {[%clk 0:01:18]}  Rd1 {[%clk 0:00:30]} 43. Rf4 {[%clk 0:01:14]}  Rh1 {[%clk 0:00:21]} 44. Kd5 {[%clk 0:01:11]}  Re8 {[%clk 0:00:20]} 45. Rf7 {[%clk 0:01:09]}  Rxh3 {[%clk 0:00:19]} 46. Bd4 {[%clk 0:01:01]}  Rd8+ {[%clk 0:00:18]} 47. Kxc4 {[%clk 0:01:01]}  Kg8 {[%clk 0:00:18]} 48. Rxb7 {[%clk 0:00:54]}  Rc8+ {[%clk 0:00:19]} 49. Bc5 {[%clk 0:00:52]}  Rh4+ {[%clk 0:00:17]} 50. Kd5 {[%clk 0:00:51]}  Rh5 {[%clk 0:00:17]} 51. Bd6 {[%clk 0:00:47]}  g5 {[%clk 0:00:16]} 52. c4 {[%clk 0:00:42]}  g4 {[%clk 0:00:16]} 53. c5 {[%clk 0:00:42]}  g3 {[%clk 0:00:16]} 54. Rg2 {[%clk 0:00:42]}  Rg5 {[%clk 0:00:16]} 55. Ke6 {[%clk 0:00:36]}  Bxe5 {[%clk 0:00:15]} 56. Bxe5 {[%clk 0:00:34]}  Re8+ {[%clk 0:00:15]} 57. Re7 {[%clk 0:00:34]}  Rxe7+ {[%clk 0:00:12]} 58. Kxe7 {[%clk 0:00:34]}  Rxe5+ {[%clk 0:00:12]} 59. Kd6 {[%clk 0:00:35]}  Re3 {[%clk 0:00:11]} 60. c6 {[%clk 0:00:35]}  Kf7 {[%clk 0:00:11]} 61. c7 {[%clk 0:00:32]}  Rc3 {[%clk 0:00:09]} 62. Kd7 {[%clk 0:00:32]}  Rd3+ {[%clk 0:00:09]} 63. Kc6 {[%clk 0:00:32]}  Ke7 {[%clk 0:00:08]} 64. c8=Q {[%clk 0:00:32]}  Rc3+ {[%clk 0:00:08]} 65. Kb7 {[%clk 0:00:32]}  Rxc8 {[%clk 0:00:09]} 66. Kxc8 {[%clk 0:00:33]}  Kd6 {[%clk 0:00:09]} 67. Rxg3 {[%clk 0:00:34]}  Kc6 {[%clk 0:00:10]} 68. Rg5 {[%clk 0:00:34]} 1-0


[Site "https://www.chess.com"]

[Event "Titled Tuesday Blitz November 29 Late 2022"]
[White "Janaszak, Dawid"]
[Black "Qashashvili, Alexandre"]
[WhiteFideId "1119206"]
[BlackFideId "13600842"]
[WhiteElo "2226"]
[BlackElo "2405"]
[Result "1-0"]
[Round "10"]
[TimeControl "180+1"]
[Date "2022.11.30"]
[WhiteClock "0:00:21"]
[BlackClock "0:00:04"]

1. e4 {[%clk 0:02:56]}  c6 {[%clk 0:02:52]} 2. d4 {[%clk 0:02:55]}  d5 {[%clk 0:02:53]} 3. exd5 {[%clk 0:02:56]}  cxd5 {[%clk 0:02:53]} 4. Bd3 {[%clk 0:02:57]}  Nf6 {[%clk 0:02:53]} 5. c3 {[%clk 0:02:55]}  Nc6 {[%clk 0:02:53]} 6. Bf4 {[%clk 0:02:55]}  Bg4 {[%clk 0:02:54]} 7. Qb3 {[%clk 0:02:55]}  Qb6 {[%clk 0:02:53]} 8. h3 {[%clk 0:02:53]}  Qxb3 {[%clk 0:02:50]} 9. axb3 {[%clk 0:02:53]}  Bh5 {[%clk 0:02:50]} 10. b4 {[%clk 0:02:52]}  Bg6 {[%clk 0:02:49]} 11. Be2 {[%clk 0:02:47]}  e6 {[%clk 0:02:43]} 12. Nf3 {[%clk 0:02:43]}  Be7 {[%clk 0:02:33]} 13. Na3 {[%clk 0:02:33]}  a6 {[%clk 0:02:30]} 14. Nh4 {[%clk 0:02:29]}  Ne4 {[%clk 0:02:25]} 15. Nxg6 {[%clk 0:02:28]}  hxg6 {[%clk 0:02:25]} 16. Bd3 {[%clk 0:02:20]}  Kd7 {[%clk 0:02:21]} 17. Nc4 {[%clk 0:02:10]}  dxc4 {[%clk 0:02:14]} 18. Bxe4 {[%clk 0:02:09]}  Bd6 {[%clk 0:02:15]} 19. Be3 {[%clk 0:02:06]}  f5 {[%clk 0:02:07]} 20. Bf3 {[%clk 0:02:04]}  Kc7 {[%clk 0:02:07]} 21. Be2 {[%clk 0:01:59]}  b5 {[%clk 0:02:04]} 22. Bf3 {[%clk 0:01:47]}  f4 {[%clk 0:01:50]} 23. Bd2 {[%clk 0:01:46]}  g5 {[%clk 0:01:49]} 24. O-O {[%clk 0:01:40]}  Ra7 {[%clk 0:01:48]} 25. Rfe1 {[%clk 0:01:39]}  Kd7 {[%clk 0:01:45]} 26. Bxc6+ {[%clk 0:01:35]}  Kxc6 {[%clk 0:01:45]} 27. Rxe6 {[%clk 0:01:35]}  Rh6 {[%clk 0:00:46]} 28. Re8 {[%clk 0:01:35]}  Kd5 {[%clk 0:00:41]} 29. f3 {[%clk 0:01:25]}  Re6 {[%clk 0:00:37]} 30. Rd8 {[%clk 0:01:10]}  Re2 {[%clk 0:00:29]} 31. Rd1 {[%clk 0:01:10]}  Kc6 {[%clk 0:00:20]} 32. Kf1 {[%clk 0:01:08]}  Ree7 {[%clk 0:00:16]} 33. Rc8+ {[%clk 0:00:50]}  Kd7 {[%clk 0:00:13]} 34. Rg8 {[%clk 0:00:47]}  Kc6 {[%clk 0:00:12]} 35. Be1 {[%clk 0:00:43]}  a5 {[%clk 0:00:10]} 36. d5+ {[%clk 0:00:43]}  Kb6 {[%clk 0:00:09]} 37. Bf2+ {[%clk 0:00:43]}  Ka6 {[%clk 0:00:09]} 38. Bxa7 {[%clk 0:00:44]}  Rxa7 {[%clk 0:00:08]} 39. Ra1 {[%clk 0:00:41]}  a4 {[%clk 0:00:06]} 40. Rc8 {[%clk 0:00:39]}  Kb7 {[%clk 0:00:05]} 41. Rc6 {[%clk 0:00:39]}  Be5 {[%clk 0:00:04]} 42. Re1 {[%clk 0:00:39]}  Bf6 {[%clk 0:00:05]} 43. Rc5 {[%clk 0:00:37]}  a3 {[%clk 0:00:05]} 44. Rxb5+ {[%clk 0:00:38]}  Kc7 {[%clk 0:00:06]} 45. Rc5+ {[%clk 0:00:37]}  Kd7 {[%clk 0:00:05]} 46. bxa3 {[%clk 0:00:36]}  Rxa3 {[%clk 0:00:06]} 47. Rxc4 {[%clk 0:00:35]}  Rb3 {[%clk 0:00:05]} 48. Rc1 {[%clk 0:00:33]}  Rb2 {[%clk 0:00:04]} 49. Rc6 {[%clk 0:00:31]}  Be5 {[%clk 0:00:04]} 50. Ra1 {[%clk 0:00:25]}  Bxc3 {[%clk 0:00:03]} 51. Ra7+ {[%clk 0:00:25]}  Kd8 {[%clk 0:00:03]} 52. Rxc3 {[%clk 0:00:24]}  Rb1+ {[%clk 0:00:04]} 53. Ke2 {[%clk 0:00:24]}  Rxb4 {[%clk 0:00:05]} 54. Kd3 {[%clk 0:00:21]}  Rb7 {[%clk 0:00:04]} 55. Rxb7 {[%clk 0:00:21]} 1-0


[Site "https://www.chess.com"]

[Event "Titled Tuesday Blitz November 29 Late 2022"]
[White "Liu, Kelsey"]
[Black "Winkels, Marcel"]
[WhiteFideId "30944481"]
[BlackFideId "1003887"]
[WhiteElo "2266"]
[BlackElo "1900"]
[Result "1-0"]
[Round "10"]
[TimeControl "180+1"]
[Date "2022.11.30"]
[WhiteClock "0:00:37"]
[BlackClock "0:00:13"]

1. e4 {[%clk 0:03:00]}  c5 {[%clk 0:02:59]} 2. Nf3 {[%clk 0:02:58]}  d6 {[%clk 0:02:59]} 3. Nc3 {[%clk 0:02:57]}  Nf6 {[%clk 0:02:58]} 4. e5 {[%clk 0:02:57]}  dxe5 {[%clk 0:02:57]} 5. Nxe5 {[%clk 0:02:58]}  e6 {[%clk 0:02:55]} 6. Bb5+ {[%clk 0:02:57]}  Nbd7 {[%clk 0:02:54]} 7. d4 {[%clk 0:02:55]}  a6 {[%clk 0:02:47]} 8. Bxd7+ {[%clk 0:02:48]}  Bxd7 {[%clk 0:02:47]} 9. O-O {[%clk 0:02:47]}  Be7 {[%clk 0:02:41]} 10. Bg5 {[%clk 0:02:41]}  O-O {[%clk 0:02:18]} 11. dxc5 {[%clk 0:02:38]}  Bc6 {[%clk 0:01:58]} 12. Nxc6 {[%clk 0:02:27]}  bxc6 {[%clk 0:01:55]} 13. Qf3 {[%clk 0:02:17]}  Nd5 {[%clk 0:01:47]} 14. Bxe7 {[%clk 0:02:13]}  Qxe7 {[%clk 0:01:47]} 15. Nxd5 {[%clk 0:02:12]}  cxd5 {[%clk 0:01:45]} 16. b4 {[%clk 0:02:11]}  a5 {[%clk 0:01:43]} 17. c3 {[%clk 0:02:11]}  d4 {[%clk 0:01:23]} 18. a3 {[%clk 0:02:03]}  Rad8 {[%clk 0:01:08]} 19. Rfd1 {[%clk 0:01:50]}  e5 {[%clk 0:01:05]} 20. c6 {[%clk 0:01:43]}  e4 {[%clk 0:01:03]} 21. Qg3 {[%clk 0:01:37]}  d3 {[%clk 0:00:57]} 22. b5 {[%clk 0:01:31]}  Qa7 {[%clk 0:00:42]} 23. c4 {[%clk 0:01:22]}  Qc5 {[%clk 0:00:41]} 24. Rac1 {[%clk 0:01:18]}  Rd4 {[%clk 0:00:34]} 25. Qe3 {[%clk 0:01:06]}  f5 {[%clk 0:00:30]} 26. b6 {[%clk 0:00:59]}  Qxb6 {[%clk 0:00:24]} 27. c5 {[%clk 0:00:59]}  Qd8 {[%clk 0:00:23]} 28. c7 {[%clk 0:00:57]}  Qd5 {[%clk 0:00:17]} 29. Rb1 {[%clk 0:00:36]}  Qxc5 {[%clk 0:00:13]} 30. Rbc1 {[%clk 0:00:37]} 1-0


[Site "https://www.chess.com"]

[Event "Titled Tuesday Blitz November 29 Late 2022"]
[White "Manelyuk, Daniil"]
[Black "Gerbelli Neto, Eduardo"]
[WhiteFideId "44173920"]
[BlackFideId "2103281"]
[WhiteElo "2209"]
[BlackElo "2178"]
[Result "1-0"]
[Round "10"]
[TimeControl "180+1"]
[Date "2022.11.30"]
[WhiteClock "0:02:12"]
[BlackClock "0:02:16"]

1. e4 {[%clk 0:03:00]}  e5 {[%clk 0:02:58]} 2. Nf3 {[%clk 0:03:00]}  Nc6 {[%clk 0:02:57]} 3. Bb5 {[%clk 0:03:00]}  a6 {[%clk 0:02:57]} 4. Ba4 {[%clk 0:02:59]}  d6 {[%clk 0:02:58]} 5. O-O {[%clk 0:02:57]}  Bg4 {[%clk 0:02:57]} 6. h3 {[%clk 0:02:56]}  h5 {[%clk 0:02:57]} 7. c3 {[%clk 0:02:55]}  Qf6 {[%clk 0:02:54]} 8. d3 {[%clk 0:02:49]}  Ne7 {[%clk 0:02:51]} 9. Bb3 {[%clk 0:02:35]}  Ng6 {[%clk 0:02:38]} 10. hxg4 {[%clk 0:02:20]}  Nf4 {[%clk 0:02:37]} 11. g5 {[%clk 0:02:18]}  Qg6 {[%clk 0:02:36]} 12. Bxf4 {[%clk 0:02:18]}  exf4 {[%clk 0:02:35]} 13. d4 {[%clk 0:02:19]}  Be7 {[%clk 0:02:34]} 14. e5 {[%clk 0:02:15]}  dxe5 {[%clk 0:02:23]} 15. Bc2 {[%clk 0:02:13]}  Qe6 {[%clk 0:02:16]} 16. d5 {[%clk 0:02:12]} 1-0


[Site "https://www.chess.com"]